Workbook

Sheet bezier
A1: Control points | E1: Point | F1: Ratio | G1: ABx | H1: ABy | I1: BCx | J1: BCy | K1: CDx | L1: CDy | M1: ABCx | N1: ABCy | O1: BCDx | P1: BCDy | Q1: ABCDx | R1: ABCDy
B2: x | C2: y | E2: 0 | F2: =E2/(BezierSteps-1) -> 0 | G2: =Ax*(1-F2)+Bx*F2 -> 0 | H2: =Ay*(1-F2)+By*F2 -> 0 | I2: =Bx*(1-F2)+Cx*F2 -> 0.05 | J2: =By*(1-F2)+Cy*F2 -> 0.6 | K2: =Cx*(1-F2)+Dx*F2 -> 0.9 | L2: =Cy*(1-F2)+Dy*F2 -> 0.4 | M2: =G2*(1-F2)+I2*F2 -> 0 | N2: =H2*(1-F2)+J2*F2 -> 0 | O2: =I2*(1-F2)+K2*F2 -> 0.05 | P2: =J2*(1-F2)+L2*F2 -> 0.6 | Q2: =M2*(1-F2)+O2*F2 -> 0 | R2: =N2*(1-F2)+P2*F2 -> 0
A3: A | B3: 0 | C3: 0 | E3: 1 | F3: 0.03448275862 | G3: 0.001724137931 | H3: 0.02068965517 | I3: 0.07931034483 | J3: 0.5931034483 | K3: 0.9034482759 | L3: 0.4206896552 | M3: =G3*(1-F3)+I3*F3 -> 0.004399524376 | N3: =H3*(1-F3)+J3*F3 -> 0.04042806183 | O3: =I3*(1-F3)+K3*F3 -> 0.1077288942 | P3: =J3*(1-F3)+L3*F3 -> 0.5871581451 | Q3: =M3*(1-F3)+O3*F3 -> 0.007962606093 | R3: =N3*(1-F3)+P3*F3 -> 0.05928082332
A4: B | B4: 0.6 | C4: 0.05 | E4: 2 | F4: 0.06896551724 | G4: 0.003448275862 | H4: 0.04137931034 | I4: 0.1086206897 | J4: 0.5862068966 | K4: 0.9068965517 | L4: 0.4413793103 | M4: 0.01070154578 | N4: 0.07895362663 | O4: 0.1636741974 | P4: 0.5762187872 | Q4: 0.02125138382 | R4: 0.1132477756
A5: C | B5: 0.4 | C5: 0.9 | E5: 3 | F5: 0.1034482759 | G5: 0.005172413793 | H5: 0.06206896552 | I5: 0.1379310345 | J5: 0.5793103448 | K5: 0.9103448276 | L5: 0.4620689655 | M5: 0.01890606421 | N5: 0.1155766944 | O5: 0.2178359096 | P5: 0.5671819263 | Q5: 0.03948501374 | R5: 0.162294477
A6: D | B6: 1 | C6: 1 | E6: 4 | F6: 0.1379310345 | G6: 0.006896551724 | H6: 0.08275862069 | I6: 0.1672413793 | J6: 0.5724137931 | K6: 0.9137931034 | L6: 0.4827586207 | M6: 0.02901307967 | N6: 0.1502972652 | O6: 0.2702140309 | P6: 0.5600475624 | Q6: 0.06228217639 | R6: 0.2068145475
E7: 5 | F7: 0.1724137931 | G7: 0.008620689655 | H7: 0.1034482759 | I7: 0.1965517241 | J7: 0.5655172414 | K7: 0.9172413793 | L7: 0.5034482759 | M7: 0.04102259215 | N7: 0.1831153389 | O7: 0.3208085612 | P7: 0.5548156956 | Q7: 0.08926155234 | R7: 0.2472016073
A8: Steps | B8: 30 | E8: 6 | F8: 0.2068965517 | G8: 0.01034482759 | H8: 0.124137931 | I8: 0.225862069 | J8: 0.5586206897 | K8: 0.9206896552 | L8: 0.524137931 | M8: 0.05493460166 | N8: 0.2140309156 | O8: 0.3696195006 | P8: 0.5514863258 | Q8: 0.1200418221 | R8: 0.2838492763
E9: 7 | F9: 0.2413793103 | G9: 0.01206896552 | H9: 0.1448275862 | I9: 0.2551724138 | J9: 0.5517241379 | K9: 0.924137931 | L9: 0.5448275862 | M9: 0.0707491082 | N9: 0.2430439952 | O9: 0.416646849 | P9: 0.550059453 | Q9: 0.1542416663 | R9: 0.3171511747
E10: 8 | F10: 0.275862069 | G10: 0.01379310345 | H10: 0.1655172414 | I10: 0.2844827586 | J10: 0.5448275862 | K10: 0.9275862069 | L10: 0.5655172414 | M10: 0.08846611177 | N10: 0.2701545779 | O10: 0.4618906064 | P10: 0.5505350773 | Q10: 0.1914797655 | R10: 0.3475009225
E11: 9 | F11: 0.3103448276 | G11: 0.01551724138 | H11: 0.1862068966 | I11: 0.3137931034 | J11: 0.5379310345 | K11: 0.9310344828 | L11: 0.5862068966 | M11: 0.1080856124 | N11: 0.2953626635 | O11: 0.5053507729 | P11: 0.5529131986 | Q11: 0.2313748001 | R11: 0.3752921399
E12: 10 | F12: 0.3448275862 | G12: 0.01724137931 | H12: 0.2068965517 | I12: 0.3431034483 | J12: 0.5310344828 | K12: 0.9344827586 | L12: 0.6068965517 | M12: 0.12960761 | N12: 0.3186682521 | O12: 0.5470273484 | P12: 0.5571938169 | Q12: 0.2735454508 | R12: 0.4009184468
E13: 11 | F13: 0.3793103448 | G13: 0.01896551724 | H13: 0.2275862069 | I13: 0.3724137931 | J13: 0.524137931 | K13: 0.9379310345 | L13: 0.6275862069 | M13: 0.1530321046 | N13: 0.3400713436 | O13: 0.5869203329 | P13: 0.5633769322 | Q13: 0.3176103981 | R13: 0.4247734634
E14: 12 | F14: 0.4137931034 | G14: 0.02068965517 | H14: 0.2482758621 | I14: 0.4017241379 | J14: 0.5172413793 | K14: 0.9413793103 | L14: 0.6482758621 | M14: 0.1783590963 | N14: 0.3595719382 | O14: 0.6250297265 | P14: 0.5714625446 | Q14: 0.3631883226 | R14: 0.4472508098
E15: 13 | F15: 0.4482758621 | G15: 0.0224137931 | H15: 0.2689655172 | I15: 0.4310344828 | J15: 0.5103448276 | K15: 0.9448275862 | L15: 0.6689655172 | M15: 0.205588585 | N15: 0.3771700357 | O15: 0.6613555291 | P15: 0.581450654 | Q15: 0.4098979048 | R15: 0.4687441059
E16: 14 | F16: 0.4827586207 | G16: 0.02413793103 | H16: 0.2896551724 | I16: 0.4603448276 | J16: 0.5034482759 | K16: 0.9482758621 | L16: 0.6896551724 | M16: 0.2347205707 | N16: 0.3928656361 | O16: 0.6958977408 | P16: 0.5933412604 | Q16: 0.4573578252 | R16: 0.489646972
E17: 15 | F17: 0.5172413793 | G17: 0.02586206897 | H17: 0.3103448276 | I17: 0.4896551724 | J17: 0.4965517241 | K17: 0.9517241379 | L17: 0.7103448276 | M17: 0.2657550535 | N17: 0.4066587396 | O17: 0.7286563615 | P17: 0.6071343639 | Q17: 0.5051867645 | R17: 0.510353028
E18: 16 | F18: 0.5517241379 | G18: 0.0275862069 | H18: 0.3310344828 | I18: 0.5189655172 | J18: 0.4896551724 | K18: 0.9551724138 | L18: 0.7310344828 | M18: 0.2986920333 | N18: 0.418549346 | O18: 0.7596313912 | P18: 0.6228299643 | Q18: 0.5530034032 | R18: 0.5312558941
E19: 17 | F19: 0.5862068966 | G19: 0.02931034483 | H19: 0.3517241379 | I19: 0.5482758621 | J19: 0.4827586207 | K19: 0.9586206897 | L19: 0.7517241379 | M19: 0.3335315101 | N19: 0.4285374554 | O19: 0.78882283 | P19: 0.6404280618 | Q19: 0.6004264217 | R19: 0.5527491902
E20: 18 | F20: 0.6206896552 | G20: 0.03103448276 | H20: 0.3724137931 | I20: 0.5775862069 | J20: 0.475862069 | K20: 0.9620689655 | L20: 0.7724137931 | M20: 0.3702734839 | N20: 0.4366230678 | O20: 0.8162306778 | P20: 0.6599286564 | Q20: 0.6470745008 | R20: 0.5752265366
E21: 19 | F21: 0.6551724138 | G21: 0.03275862069 | H21: 0.3931034483 | I21: 0.6068965517 | J21: 0.4689655172 | K21: 0.9655172414 | L21: 0.7931034483 | M21: 0.4089179548 | N21: 0.4428061831 | O21: 0.8418549346 | P21: 0.6813317479 | Q21: 0.6925663209 | R21: 0.5990815532
E22: 20 | F22: 0.6896551724 | G22: 0.03448275862 | H22: 0.4137931034 | I22: 0.6362068966 | J22: 0.4620689655 | K22: 0.9689655172 | L22: 0.8137931034 | M22: 0.4494649227 | N22: 0.4470868014 | O22: 0.8656956005 | P22: 0.7046373365 | Q22: 0.7365205625 | R22: 0.6247078601
E23: 21 | F23: 0.724137931 | G23: 0.03620689655 | H23: 0.4344827586 | I23: 0.6655172414 | J23: 0.4551724138 | K23: 0.9724137931 | L23: 0.8344827586 | M23: 0.4919143876 | N23: 0.4494649227 | O23: 0.8877526754 | P23: 0.7298454221 | Q23: 0.7785559064 | R23: 0.6524990775
E24: 22 | F24: 0.7586206897 | G24: 0.03793103448 | H24: 0.4551724138 | I24: 0.6948275862 | J24: 0.4482758621 | K24: 0.975862069 | L24: 0.8551724138 | M24: 0.5362663496 | N24: 0.449940547 | O24: 0.9080261593 | P24: 0.7569560048 | Q24: 0.8182910328 | R24: 0.6828488253
E25: 23 | F25: 0.7931034483 | G25: 0.03965517241 | H25: 0.475862069 | I25: 0.724137931 | J25: 0.4413793103 | K25: 0.9793103448 | L25: 0.875862069 | M25: 0.5825208086 | N25: 0.4485136742 | O25: 0.9265160523 | P25: 0.7859690844 | Q25: 0.8553446226 | R25: 0.7161507237
E26: 24 | F26: 0.8275862069 | G26: 0.04137931034 | H26: 0.4965517241 | I26: 0.7534482759 | J26: 0.4344827586 | K26: 0.9827586207 | L26: 0.8965517241 | M26: 0.6306777646 | N26: 0.4451843044 | O26: 0.9432223543 | P26: 0.8168846611 | Q26: 0.8893353561 | R26: 0.7527983927
E27: 25 | F27: 0.8620689655 | G27: 0.04310344828 | H27: 0.5172413793 | I27: 0.7827586207 | J27: 0.4275862069 | K27: 0.9862068966 | L27: 0.9172413793 | M27: 0.6807372176 | N27: 0.4399524376 | O27: 0.9581450654 | P27: 0.8497027348 | Q27: 0.919881914 | R27: 0.7931854525
E28: 26 | F28: 0.8965517241 | G28: 0.04482758621 | H28: 0.5379310345 | I28: 0.8120689655 | J28: 0.4206896552 | K28: 0.9896551724 | L28: 0.9379310345 | M28: 0.7326991677 | N28: 0.4328180737 | O28: 0.9712841855 | P28: 0.8844233056 | Q28: 0.9466029768 | R28: 0.837705523
E29: 27 | F29: 0.9310344828 | G29: 0.04655172414 | H29: 0.5586206897 | I29: 0.8413793103 | J29: 0.4137931034 | K29: 0.9931034483 | L29: 0.9586206897 | M29: 0.7865636147 | N29: 0.4237812128 | O29: 0.9826397146 | P29: 0.9210463734 | Q29: 0.969117225 | R29: 0.8867522244
E30: 28 | F30: 0.9655172414 | G30: 0.04827586207 | H30: 0.5793103448 | I30: 0.8706896552 | J30: 0.4068965517 | K30: 0.9965517241 | L30: 0.9793103448 | M30: 0.8423305589 | N30: 0.4128418549 | O30: 0.9922116528 | P30: 0.9595719382 | Q30: 0.9870433392 | R30: 0.9407191767
E31: 29 | F31: 1 | G31: 0.05 | H31: 0.6 | I31: 0.9 | J31: 0.4 | K31: 1 | L31: 1 | M31: 0.9 | N31: 0.4 | O31: 1 | P31: 1 | Q31: 1 | R31: 1

Sheet shadow
B1: Red | C1: Green | D1: Blue | E1: Actual color | G1: Point | H1: Ratio | I1: Bezier | J1: Red | K1: Green | L1: Blue | M1: Actual color | N1: Rx | O1: Gx | P1: Bx | Q1: CSS
A2: Shadow | B2: 191 | C2: 184 | D2: 144 | E2: . | G2: =bezier!E2 -> 0 | H2: =bezier!F2 -> 0 | I2: =bezier!Q2 -> 0 | J2: =MIN(ROUND(ShadowRed*(1+(RatioRed-1)*I2),0),255) -> 191 | K2: =MIN(ROUND(ShadowGreen*(1+(RatioGreen-1)*I2),0),255) -> 184 | L2: =MIN(ROUND(ShadowBlue*(1+(RatioBlue-1)*I2),0),255) -> 144 | M2: . | N2: =LOWER(DEC2HEX(J2,2)) -> bf | O2: =LOWER(DEC2HEX(K2,2)) -> b8 | P2: 90
A3: Background | B3: 255 | C3: 255 | D3: 192 | E3: . | G3: =bezier!E3 -> 1 | H3: =bezier!F3 -> 0.03448275862 | I3: =bezier!Q3 -> 0.007962606093 | J3: =MIN(ROUND(ShadowRed*(1+(RatioRed-1)*I3),0),255) -> 192 | K3: =MIN(ROUND(ShadowGreen*(1+(RatioGreen-1)*I3),0),255) -> 185 | L3: =MIN(ROUND(ShadowBlue*(1+(RatioBlue-1)*I3),0),255) -> 144 | M3: . | N3: =LOWER(DEC2HEX(J3,2)) -> c0 | O3: =LOWER(DEC2HEX(K3,2)) -> b9 | P3: =LOWER(DEC2HEX(L3,2)) -> 90 | Q3: =CONCATENATE(G3,"px ",G3,"px 1px #",N3,O3,P3,IF(M4="",";",",")) -> 1px 1px 1px #c0b990,
A4: Ratio | B4: =B3/B2 -> 1.335078534 | C4: =C3/C2 -> 1.385869565 | D4: =D3/D2 -> 1.333333333 | G4: =bezier!E4 -> 2 | H4: =bezier!F4 -> 0.06896551724 | I4: =bezier!Q4 -> 0.02125138382 | J4: =MIN(ROUND(ShadowRed*(1+(RatioRed-1)*I4),0),255) -> 192 | K4: =MIN(ROUND(ShadowGreen*(1+(RatioGreen-1)*I4),0),255) -> 186 | L4: =MIN(ROUND(ShadowBlue*(1+(RatioBlue-1)*I4),0),255) -> 145 | M4: . | N4: c0 | O4: ba | P4: 91 | Q4: 2px 2px 1px #c0ba91,
G5: =bezier!E5 -> 3 | H5: =bezier!F5 -> 0.1034482759 | I5: =bezier!Q5 -> 0.03948501374 | J5: =MIN(ROUND(ShadowRed*(1+(RatioRed-1)*I5),0),255) -> 194 | K5: =MIN(ROUND(ShadowGreen*(1+(RatioGreen-1)*I5),0),255) -> 187 | L5: =MIN(ROUND(ShadowBlue*(1+(RatioBlue-1)*I5),0),255) -> 146 | M5: . | N5: c2 | O5: bb | P5: 92 | Q5: 3px 3px 1px #c2bb92,
G6: =bezier!E6 -> 4 | H6: =bezier!F6 -> 0.1379310345 | I6: =bezier!Q6 -> 0.06228217639 | J6: =MIN(ROUND(ShadowRed*(1+(RatioRed-1)*I6),0),255) -> 195 | K6: =MIN(ROUND(ShadowGreen*(1+(RatioGreen-1)*I6),0),255) -> 188 | L6: =MIN(ROUND(ShadowBlue*(1+(RatioBlue-1)*I6),0),255) -> 147 | M6: . | N6: c3 | O6: bc | P6: 93 | Q6: 4px 4px 1px #c3bc93,
G7: =bezier!E7 -> 5 | H7: =bezier!F7 -> 0.1724137931 | I7: =bezier!Q7 -> 0.08926155234 | J7: =MIN(ROUND(ShadowRed*(1+(RatioRed-1)*I7),0),255) -> 197 | K7: =MIN(ROUND(ShadowGreen*(1+(RatioGreen-1)*I7),0),255) -> 190 | L7: =MIN(ROUND(ShadowBlue*(1+(RatioBlue-1)*I7),0),255) -> 148 | M7: . | N7: c5 | O7: be | P7: 94 | Q7: 5px 5px 1px #c5be94,
G8: =bezier!E8 -> 6 | H8: =bezier!F8 -> 0.2068965517 | I8: =bezier!Q8 -> 0.1200418221 | J8: =MIN(ROUND(ShadowRed*(1+(RatioRed-1)*I8),0),255) -> 199 | K8: =MIN(ROUND(ShadowGreen*(1+(RatioGreen-1)*I8),0),255) -> 193 | L8: =MIN(ROUND(ShadowBlue*(1+(RatioBlue-1)*I8),0),255) -> 150 | M8: . | N8: c7 | O8: c1 | P8: 96 | Q8: 6px 6px 1px #c7c196,
G9: =bezier!E9 -> 7 | H9: =bezier!F9 -> 0.2413793103 | I9: =bezier!Q9 -> 0.1542416663 | J9: =MIN(ROUND(ShadowRed*(1+(RatioRed-1)*I9),0),255) -> 201 | K9: =MIN(ROUND(ShadowGreen*(1+(RatioGreen-1)*I9),0),255) -> 195 | L9: =MIN(ROUND(ShadowBlue*(1+(RatioBlue-1)*I9),0),255) -> 151 | M9: . | N9: c9 | O9: c3 | P9: 97 | Q9: 7px 7px 1px #c9c397,
G10: =bezier!E10 -> 8 | H10: =bezier!F10 -> 0.275862069 | I10: =bezier!Q10 -> 0.1914797655 | J10: =MIN(ROUND(ShadowRed*(1+(RatioRed-1)*I10),0),255) -> 203 | K10: =MIN(ROUND(ShadowGreen*(1+(RatioGreen-1)*I10),0),255) -> 198 | L10: =MIN(ROUND(ShadowBlue*(1+(RatioBlue-1)*I10),0),255) -> 153 | M10: . | N10: cb | O10: c6 | P10: 99 | Q10: 8px 8px 1px #cbc699,
G11: =bezier!E11 -> 9 | H11: =bezier!F11 -> 0.3103448276 | I11: =bezier!Q11 -> 0.2313748001 | J11: =MIN(ROUND(ShadowRed*(1+(RatioRed-1)*I11),0),255) -> 206 | K11: =MIN(ROUND(ShadowGreen*(1+(RatioGreen-1)*I11),0),255) -> 200 | L11: =MIN(ROUND(ShadowBlue*(1+(RatioBlue-1)*I11),0),255) -> 155 | M11: . | N11: ce | O11: c8 | P11: 9b | Q11: 9px 9px 1px #cec89b,
G12: =bezier!E12 -> 10 | H12: =bezier!F12 -> 0.3448275862 | I12: =bezier!Q12 -> 0.2735454508 | J12: =MIN(ROUND(ShadowRed*(1+(RatioRed-1)*I12),0),255) -> 209 | K12: =MIN(ROUND(ShadowGreen*(1+(RatioGreen-1)*I12),0),255) -> 203 | L12: =MIN(ROUND(ShadowBlue*(1+(RatioBlue-1)*I12),0),255) -> 157 | M12: . | N12: d1 | O12: cb | P12: 9d | Q12: 10px 10px 1px #d1cb9d,
G13: =bezier!E13 -> 11 | H13: =bezier!F13 -> 0.3793103448 | I13: =bezier!Q13 -> 0.3176103981 | J13: =MIN(ROUND(ShadowRed*(1+(RatioRed-1)*I13),0),255) -> 211 | K13: =MIN(ROUND(ShadowGreen*(1+(RatioGreen-1)*I13),0),255) -> 207 | L13: =MIN(ROUND(ShadowBlue*(1+(RatioBlue-1)*I13),0),255) -> 159 | M13: . | N13: d3 | O13: cf | P13: 9f | Q13: 11px 11px 1px #d3cf9f,
G14: =bezier!E14 -> 12 | H14: =bezier!F14 -> 0.4137931034 | I14: =bezier!Q14 -> 0.3631883226 | J14: =MIN(ROUND(ShadowRed*(1+(RatioRed-1)*I14),0),255) -> 214 | K14: =MIN(ROUND(ShadowGreen*(1+(RatioGreen-1)*I14),0),255) -> 210 | L14: =MIN(ROUND(ShadowBlue*(1+(RatioBlue-1)*I14),0),255) -> 161 | M14: . | N14: d6 | O14: d2 | P14: a1 | Q14: 12px 12px 1px #d6d2a1,
G15: =bezier!E15 -> 13 | H15: =bezier!F15 -> 0.4482758621 | I15: =bezier!Q15 -> 0.4098979048 | J15: =MIN(ROUND(ShadowRed*(1+(RatioRed-1)*I15),0),255) -> 217 | K15: =MIN(ROUND(ShadowGreen*(1+(RatioGreen-1)*I15),0),255) -> 213 | L15: =MIN(ROUND(ShadowBlue*(1+(RatioBlue-1)*I15),0),255) -> 164 | M15: . | N15: d9 | O15: d5 | P15: a4 | Q15: 13px 13px 1px #d9d5a4,
G16: =bezier!E16 -> 14 | H16: =bezier!F16 -> 0.4827586207 | I16: =bezier!Q16 -> 0.4573578252 | J16: =MIN(ROUND(ShadowRed*(1+(RatioRed-1)*I16),0),255) -> 220 | K16: =MIN(ROUND(ShadowGreen*(1+(RatioGreen-1)*I16),0),255) -> 216 | L16: =MIN(ROUND(ShadowBlue*(1+(RatioBlue-1)*I16),0),255) -> 166 | M16: . | N16: dc | O16: d8 | P16: a6 | Q16: 14px 14px 1px #dcd8a6,
G17: =bezier!E17 -> 15 | H17: =bezier!F17 -> 0.5172413793 | I17: =bezier!Q17 -> 0.5051867645 | J17: =MIN(ROUND(ShadowRed*(1+(RatioRed-1)*I17),0),255) -> 223 | K17: =MIN(ROUND(ShadowGreen*(1+(RatioGreen-1)*I17),0),255) -> 220 | L17: =MIN(ROUND(ShadowBlue*(1+(RatioBlue-1)*I17),0),255) -> 168 | M17: . | N17: df | O17: dc | P17: a8 | Q17: 15px 15px 1px #dfdca8,
G18: =bezier!E18 -> 16 | H18: =bezier!F18 -> 0.5517241379 | I18: =bezier!Q18 -> 0.5530034032 | J18: =MIN(ROUND(ShadowRed*(1+(RatioRed-1)*I18),0),255) -> 226 | K18: =MIN(ROUND(ShadowGreen*(1+(RatioGreen-1)*I18),0),255) -> 223 | L18: =MIN(ROUND(ShadowBlue*(1+(RatioBlue-1)*I18),0),255) -> 171 | M18: . | N18: e2 | O18: df | P18: ab | Q18: 16px 16px 1px #e2dfab,
G19: =bezier!E19 -> 17 | H19: =bezier!F19 -> 0.5862068966 | I19: =bezier!Q19 -> 0.6004264217 | J19: =MIN(ROUND(ShadowRed*(1+(RatioRed-1)*I19),0),255) -> 229 | K19: =MIN(ROUND(ShadowGreen*(1+(RatioGreen-1)*I19),0),255) -> 227 | L19: =MIN(ROUND(ShadowBlue*(1+(RatioBlue-1)*I19),0),255) -> 173 | M19: . | N19: e5 | O19: e3 | P19: ad | Q19: 17px 17px 1px #e5e3ad,
G20: =bezier!E20 -> 18 | H20: =bezier!F20 -> 0.6206896552 | I20: =bezier!Q20 -> 0.6470745008 | J20: =MIN(ROUND(ShadowRed*(1+(RatioRed-1)*I20),0),255) -> 232 | K20: =MIN(ROUND(ShadowGreen*(1+(RatioGreen-1)*I20),0),255) -> 230 | L20: =MIN(ROUND(ShadowBlue*(1+(RatioBlue-1)*I20),0),255) -> 175 | M20: . | N20: e8 | O20: e6 | P20: af | Q20: 18px 18px 1px #e8e6af,
G21: =bezier!E21 -> 19 | H21: =bezier!F21 -> 0.6551724138 | I21: =bezier!Q21 -> 0.6925663209 | J21: =MIN(ROUND(ShadowRed*(1+(RatioRed-1)*I21),0),255) -> 235 | K21: =MIN(ROUND(ShadowGreen*(1+(RatioGreen-1)*I21),0),255) -> 233 | L21: =MIN(ROUND(ShadowBlue*(1+(RatioBlue-1)*I21),0),255) -> 177 | M21: . | N21: eb | O21: e9 | P21: b1 | Q21: 19px 19px 1px #ebe9b1,
G22: =bezier!E22 -> 20 | H22: =bezier!F22 -> 0.6896551724 | I22: =bezier!Q22 -> 0.7365205625 | J22: =MIN(ROUND(ShadowRed*(1+(RatioRed-1)*I22),0),255) -> 238 | K22: =MIN(ROUND(ShadowGreen*(1+(RatioGreen-1)*I22),0),255) -> 236 | L22: =MIN(ROUND(ShadowBlue*(1+(RatioBlue-1)*I22),0),255) -> 179 | M22: . | N22: ee | O22: ec | P22: b3 | Q22: 20px 20px 1px #eeecb3,
G23: =bezier!E23 -> 21 | H23: =bezier!F23 -> 0.724137931 | I23: =bezier!Q23 -> 0.7785559064 | J23: =MIN(ROUND(ShadowRed*(1+(RatioRed-1)*I23),0),255) -> 241 | K23: =MIN(ROUND(ShadowGreen*(1+(RatioGreen-1)*I23),0),255) -> 239 | L23: =MIN(ROUND(ShadowBlue*(1+(RatioBlue-1)*I23),0),255) -> 181 | M23: . | N23: f1 | O23: ef | P23: b5 | Q23: 21px 21px 1px #f1efb5,
G24: =bezier!E24 -> 22 | H24: =bezier!F24 -> 0.7586206897 | I24: =bezier!Q24 -> 0.8182910328 | J24: =MIN(ROUND(ShadowRed*(1+(RatioRed-1)*I24),0),255) -> 243 | K24: =MIN(ROUND(ShadowGreen*(1+(RatioGreen-1)*I24),0),255) -> 242 | L24: =MIN(ROUND(ShadowBlue*(1+(RatioBlue-1)*I24),0),255) -> 183 | M24: . | N24: f3 | O24: f2 | P24: b7 | Q24: 22px 22px 1px #f3f2b7,
G25: =bezier!E25 -> 23 | H25: =bezier!F25 -> 0.7931034483 | I25: =bezier!Q25 -> 0.8553446226 | J25: =MIN(ROUND(ShadowRed*(1+(RatioRed-1)*I25),0),255) -> 246 | K25: =MIN(ROUND(ShadowGreen*(1+(RatioGreen-1)*I25),0),255) -> 245 | L25: =MIN(ROUND(ShadowBlue*(1+(RatioBlue-1)*I25),0),255) -> 185 | M25: . | N25: f6 | O25: f5 | P25: b9 | Q25: 23px 23px 1px #f6f5b9,
G26: =bezier!E26 -> 24 | H26: =bezier!F26 -> 0.8275862069 | I26: =bezier!Q26 -> 0.8893353561 | J26: =MIN(ROUND(ShadowRed*(1+(RatioRed-1)*I26),0),255) -> 248 | K26: =MIN(ROUND(ShadowGreen*(1+(RatioGreen-1)*I26),0),255) -> 247 | L26: =MIN(ROUND(ShadowBlue*(1+(RatioBlue-1)*I26),0),255) -> 187 | M26: . | N26: f8 | O26: f7 | P26: bb | Q26: 24px 24px 1px #f8f7bb,
G27: =bezier!E27 -> 25 | H27: =bezier!F27 -> 0.8620689655 | I27: =bezier!Q27 -> 0.919881914 | J27: =MIN(ROUND(ShadowRed*(1+(RatioRed-1)*I27),0),255) -> 250 | K27: =MIN(ROUND(ShadowGreen*(1+(RatioGreen-1)*I27),0),255) -> 249 | L27: =MIN(ROUND(ShadowBlue*(1+(RatioBlue-1)*I27),0),255) -> 188 | M27: . | N27: fa | O27: f9 | P27: bc | Q27: 25px 25px 1px #faf9bc,
G28: =bezier!E28 -> 26 | H28: =bezier!F28 -> 0.8965517241 | I28: =bezier!Q28 -> 0.9466029768 | J28: =MIN(ROUND(ShadowRed*(1+(RatioRed-1)*I28),0),255) -> 252 | K28: =MIN(ROUND(ShadowGreen*(1+(RatioGreen-1)*I28),0),255) -> 251 | L28: =MIN(ROUND(ShadowBlue*(1+(RatioBlue-1)*I28),0),255) -> 189 | M28: . | N28: fc | O28: fb | P28: bd | Q28: 26px 26px 1px #fcfbbd,
G29: =bezier!E29 -> 27 | H29: =bezier!F29 -> 0.9310344828 | I29: =bezier!Q29 -> 0.969117225 | J29: =MIN(ROUND(ShadowRed*(1+(RatioRed-1)*I29),0),255) -> 253 | K29: =MIN(ROUND(ShadowGreen*(1+(RatioGreen-1)*I29),0),255) -> 253 | L29: =MIN(ROUND(ShadowBlue*(1+(RatioBlue-1)*I29),0),255) -> 191 | M29: . | N29: fd | O29: fd | P29: bf | Q29: 27px 27px 1px #fdfdbf,
G30: =bezier!E30 -> 28 | H30: =bezier!F30 -> 0.9655172414 | I30: =bezier!Q30 -> 0.9870433392 | J30: =MIN(ROUND(ShadowRed*(1+(RatioRed-1)*I30),0),255) -> 254 | K30: =MIN(ROUND(ShadowGreen*(1+(RatioGreen-1)*I30),0),255) -> 254 | L30: =MIN(ROUND(ShadowBlue*(1+(RatioBlue-1)*I30),0),255) -> 191 | M30: . | N30: fe | O30: fe | P30: bf | Q30: 28px 28px 1px #fefebf,
G31: =bezier!E31 -> 29 | H31: =bezier!F31 -> 1 | I31: =bezier!Q31 -> 1 | J31: =MIN(ROUND(ShadowRed*(1+(RatioRed-1)*I31),0),255) -> 255 | K31: =MIN(ROUND(ShadowGreen*(1+(RatioGreen-1)*I31),0),255) -> 255 | L31: =MIN(ROUND(ShadowBlue*(1+(RatioBlue-1)*I31),0),255) -> 192 | M31: . | N31: ff | O31: ff | P31: c0 | Q31: 29px 29px 1px #ffffc0;
